[Event "360 One Wealth GP-4 2024"]
[Site "Mumbai"]
[Date "2024.03.16"]
[Round "6.3"]
[White "Arnav Mahesh Koli"]
[Black "Shah Mihir"]
[Result "1/2-1/2"]
[ECO "C11"]
[WhiteElo "1857"]
[BlackElo "1764"]
[Annotator "NA RC"]
[PlyCount "88"]
[EventDate "2024.03.10"]
[EventCountry "IND"]
[SourceTitle "playchess.com"]
[Source "ChessBase"]
[SourceQuality "1"]
[TimeControl "5400+30"]

1. e4 {[%emt 0:00:03]} e6 {[%emt 0:01:25]} 2. d4 {[%emt 0:00:07]} d5 {[%emt 0:00:36]} 3. Nc3 {[%emt 0:00:02]} Nf6 {[%emt 0:01:04]} 4. e5 {[%emt 0:02:42]} Nfd7 {[%emt 0:00:06]} 5. f4 {[%emt 0:05:05]} c5 {[%emt 0:00:18]} 6. Nf3 {[%emt 0:00:10]} Nc6 {[%emt 0:00:04]} 7. Be3 {[%emt 0:00:50]} cxd4 {[%emt 0:02:32]} 8. Nxd4 {[%emt 0:00:25]} Bc5 {[%emt 0:02:35]} 9. Ncb5 {[%emt 0:05:56] C11: French: Classical System: 4 e5 and 4 Bg5 dxe4.} O-O {[%emt 0:07:07]} 10. c3 {[%emt 0:04:43]} Rb8 {[%emt 0:09:49]} 11. b4 {[%emt 0:03:40]} Be7 {[%emt 0:02:36]} 12. a4 {[%emt 0:02:42]} a5 {[%emt 0:02:26]} 13. bxa5 {[%emt 0:05:31]} Nxa5 {[%emt 0:01:27]} 14. Bd3 {[%emt 0:03:26]} Nc5 {[%emt 0:02:09]} 15. O-O {[%emt 0:05:08]} Nc4 {[%emt 0:04:11]} 16. Qe2 {[%emt 0:07:03]} Nxd3 {[%emt 0:03:00]} 17. Qxd3 {[%emt 0:00:03]} f6 {[%emt 0:00:54]} 18. Nf3 {[%emt 0:01:25]} Bd7 {[%emt 0:07:25]} 19. exf6 {[%emt 0:15:58]} Bxf6 {[%emt 0:00:34]} 20. Bc5 {[%emt 0:01:34]} Re8 {[%emt 0:10:29]} 21. Bd4 {[%emt 0:01:05]} Bxb5 {[%emt 0:02:57]} 22. axb5 {[%emt 0:00:29]} Nd6 {[%emt 0:01:54]} 23. g4 {[%emt 0:07:37]} Ne4 {[%emt 0:03:13]} 24. g5 {[%emt 0:01:53]} Bxd4+ {[%emt 0:00:47]} 25. cxd4 {[%emt 0:02:09]} Qb6 {[%emt 0:04:49]} 26. Ne5 {[%emt 0:02:58]} Rbc8 {[%emt 0:00:26]} 27. Ra3 {[%emt 0:06:17]} Rc7 {[%emt 0:03:03]} 28. Rfa1 $17 {[%emt 0:02:29]} Rec8 {[%emt 0:03:49]} 29. Ra8 {[%emt 0:01:03]} Nd6 {[%emt 0:00:20]} 30. Rxc8+ {[%emt 0:00:29]} Rxc8 {[%emt 0:00:13]} 31. Rb1 {[%emt 0:00:15]} Nf5 {[%emt 0:01:08]} 32. Nf3 {[%emt 0:01:29]} Rc4 {[%emt 0:00:35]} 33. Kg2 {[%emt 0:02:26]} Qc7 {[%emt 0:03:51]} 34. Qa3 {[%emt 0:07:52]} Rc2+ {[%emt 0:05:17]} 35. Kg1 {[%emt 0:00:16]} Rc3 {[%emt 0:00:22]} 36. b6 {[%emt 0:00:18]} Qc8 {[%emt 0:00:52]} 37. Rb3 {[%emt 0:00:18]} Rxb3 {[%emt 0:05:37]} 38. Qxb3 {[%emt 0:00:01]} Qc1+ {[%emt 0:00:12]} 39. Kg2 {[%emt 0:00:22]} Qxf4 {[%emt 0:00:09]} 40. Qa4 {[%emt 0:00:05]} Ne3+ {[%emt 0:03:32]} 41. Kf2 {[%emt 0:00:59]} Ng4+ {[%emt 0:00:14]} 42. Kg2 {[%emt 0:00:02]} Ne3+ {[%emt 0:00:30]} 43. Kf2 {[%emt 0:01:04]} Ng4+ {[%emt 0:00:47]} 44. Kg2 {[%emt 0:00:02]} Ne3+ 1/2-1/2

[Event "360 One Wealth GP-4 2024"]
[Site "Mumbai"]
[Date "2024.03.16"]
[Round "6.4"]
[White "Ram Vishal Parab"]
[Black "Muthe Dhruv"]
[Result "1-0"]
[ECO "B50"]
[WhiteElo "1807"]
[BlackElo "1539"]
[Annotator "NA RC"]
[PlyCount "86"]
[EventDate "2024.03.10"]
[EventCountry "IND"]
[SourceTitle "playchess.com"]
[Source "ChessBase"]
[SourceQuality "1"]
[TimeControl "5400+30"]

1. e4 {[%emt 0:00:03]} c5 {[%emt 0:17:54]} 2. Nf3 {[%emt 0:00:11]} d6 {[%emt 0:00:03]} 3. c3 {[%emt 0:00:06]} Nf6 {[%emt 0:03:51]} 4. h3 {[%emt 0:00:06]} g6 {[%emt 0:01:12]} 5. Bd3 {[%emt 0:00:07]} Nc6 {[%emt 0:00:55]} 6. Bc2 {[%emt 0:00:09]} e5 {[%emt 0:02:42] B50: Sicilian: 2...d6, Miscellaneous.} 7. O-O {[%emt 0:00:15]} Bg7 {[%emt 0:00:05]} 8. d4 {[%emt 0:00:15]} cxd4 {[%emt 0:00:10]} 9. cxd4 {[%emt 0:00:06]} exd4 {[%emt 0:01:25]} 10. Nxd4 {[%emt 0:00:09]} O-O {[%emt 0:01:15]} 11. Nxc6 {[%emt 0:02:22] 11.Nxc6 is better than 11.Nc3.} bxc6 {[%emt 0:00:17]} 12. Nc3 {[%emt 0:00:06]} Qc7 $146 {[%emt 0:01:06]} ({Predecessor:} 12... Re8 13. Re1 a5 14. Bf4 d5 15. exd5 Rxe1+ 16. Qxe1 Nxd5 17. Rd1 Be6 18. Be5 Bxe5 19. Qxe5 {0-1 Martinez Alcantara,J (2619)-Giri,A (2775) Bullet Chess Winners blitz 2023 (1.4)}) 13. Bf4 {[%emt 0:01:04]} Rd8 {[%emt 0:00:31]} 14. Qd2 {[%emt 0:03:11]} Nh5 {[%emt 0:00:11]} 15. Bg5 {[%emt 0:01:44]} Bf6 {[%emt 0:01:45]} 16. Be3 {[%emt 0:02:10]} Rb8 {[%emt 0:03:30]} 17. Bb3 {[%emt 0:01:59]} Be6 {[%emt 0:01:10]} 18. g4 {[%emt 0:10:47]} Ng7 {[%emt 0:00:19]} 19. f4 {[%emt 0:00:12]} h5 {[%emt 0:06:58]} 20. Bxe6 {[%emt 0:03:43]} fxe6 {[%emt 0:01:17]} 21. gxh5 {[%emt 0:00:04]} Nxh5 {[%emt 0:01:47]} 22. Qf2 {[%emt 0:03:50]} Rb7 {[%emt 0:02:07]} 23. Rac1 {[%emt 0:04:22]} Rdb8 {[%emt 0:05:43]} 24. b3 {[%emt 0:01:48]} Qa5 {[%emt 0:00:48]} 25. Nb1 {[%emt 0:06:17]} Rc8 {[%emt 0:02:45]} 26. Qg2 {[%emt 0:04:49]} Bh4 {[%emt 0:03:47]} 27. Qg4 {[%emt 0:00:29]} Qd8 {[%emt 0:04:26]} 28. Qxe6+ {[%emt 0:00:27]} Kh8 {[%emt 0:01:48]} 29. Rcd1 {[%emt 0:02:46]} Re7 {[%emt 0:01:02]} 30. Qg4 {[%emt 0:05:12]} Rxe4 {[%emt 0:01:46]} 31. Bxa7 {[%emt 0:00:20]} Ra8 {[%emt 0:01:56]} 32. Nc3 {[%emt 0:01:27]} Re8 {[%emt 0:07:15]} 33. Bd4+ {[%emt 0:00:43]} Kh7 {[%emt 0:00:30]} 34. Rd3 {[%emt 0:06:32]} Ra5 {[%emt 0:05:05]} 35. Kh2 {[%emt 0:01:47]} Rf5 {[%emt 0:02:50]} 36. Rg1 {[%emt 0:00:09]} Nxf4 {[%emt 0:01:18]} 37. Re3 {[%emt 0:03:01]} Rxe3 {[%emt 0:03:27]} 38. Bxe3 {[%emt 0:00:05]} Qf6 {[%emt 0:00:43]} 39. Ne4 {[%emt 0:00:36]} Qb2+ {[%emt 0:00:32]} 40. Kh1 $18 {[%emt 0:00:06]} Qe5 {[%emt 0:04:06]} 41. Qxh4+ {[%emt 0:00:02]} Rh5 {[%emt 0:01:47]} 42. Qxf4 {[%emt 0:00:33]} Qd5 {[%emt 0:03:37]} 43. Kh2 {[%emt 0:00:20]} Qe6 {[%emt 0:03:26]} 1-0

[Event "360 One Wealth GP-4 2024"]
[Site "Mumbai"]
[Date "2024.03.16"]
[Round "6.5"]
[White "Vihaan Ravi Rao"]
[Black "Soni Atharv"]
[Result "0-1"]
[ECO "C13"]
[WhiteElo "1532"]
[BlackElo "1684"]
[Annotator "NA RC"]
[PlyCount "78"]
[EventDate "2024.03.10"]
[EventCountry "IND"]
[SourceTitle "playchess.com"]
[Source "ChessBase"]
[SourceQuality "1"]
[TimeControl "5400+30"]

1. e4 {[%emt 0:00:06]} e6 {[%emt 0:00:20]} 2. d4 {[%emt 0:00:18]} d5 {[%emt 0:00:07]} 3. Nc3 {[%emt 0:00:19]} Nf6 {[%emt 0:00:11]} 4. Bg5 {[%emt 0:00:13]} dxe4 {[%emt 0:00:07]} 5. Nxe4 {[%emt 0:00:51]} Be7 {[%emt 0:00:04]} 6. Nxf6+ {[%emt 0:01:38]} Bxf6 {[%emt 0:00:06]} 7. Bxf6 {[%emt 0:00:26]} Qxf6 {[%emt 0:00:02]} 8. Nf3 {[%emt 0:02:47]} O-O {[%emt 0:00:43]} 9. Bd3 {[%emt 0:00:44]} c5 {[%emt 0:03:03]} 10. O-O {[%emt 0:05:07]} Nc6 {[%emt 0:08:56]} 11. c3 {[%emt 0:11:02]} cxd4 {[%emt 0:01:00]} 12. Nxd4 {[%emt 0:01:01]} Nxd4 {[%emt 0:07:15]} 13. cxd4 {[%emt 0:00:33]} g6 {[%emt 0:05:32]} 14. Qa4 {[%emt 0:07:35]} Rd8 {[%emt 0:00:22]} 15. Rac1 {[%emt 0:05:47]} Qxd4 {[%emt 0:01:14]} 16. Qxd4 {[%emt 0:00:54]} Rxd4 {[%emt 0:00:01]} 17. Rfd1 {[%emt 0:04:30]} e5 {[%emt 0:07:29]} 18. Rc7 {[%emt 0:09:57]} Be6 {[%emt 0:01:54]} 19. Bc2 {[%emt 0:05:50]} Rxd1+ {[%emt 0:01:19]} 20. Bxd1 {[%emt 0:00:33]} Rd8 {[%emt 0:00:25]} 21. Bc2 {[%emt 0:01:54]} Bxa2 {[%emt 0:01:45]} 22. Rxb7 {[%emt 0:02:01]} Rc8 {[%emt 0:00:18]} 23. Bd3 {[%emt 0:02:08]} Rc1+ {[%emt 0:00:07]} 24. Bf1 {[%emt 0:00:03]} Bc4 {[%emt 0:00:07]} 25. h3 {[%emt 0:00:47]} Rxf1+ {[%emt 0:00:18]} 26. Kh2 {[%emt 0:00:10]} Rxf2 {[%emt 0:00:03]} 27. Rxa7 {[%emt 0:00:29]} Bd5 {[%emt 0:00:15]} 28. Kg1 {[%emt 0:00:24]} Rxg2+ {[%emt 0:00:06]} 29. Kf1 {[%emt 0:00:09]} Rxb2 {[%emt 0:00:04]} 30. Rc7 {[%emt 0:00:19]} Bg2+ {[%emt 0:00:09]} 31. Kg1 {[%emt 0:00:16]} Bxh3 {[%emt 0:00:02]} 32. Rc1 {[%emt 0:00:57]} e4 {[%emt 0:00:17]} 33. Re1 {[%emt 0:00:08]} f5 {[%emt 0:00:14]} 34. Re3 {[%emt 0:02:00]} Bg4 {[%emt 0:00:06]} 35. Rg3 {[%emt 0:00:19]} Bf3 {[%emt 0:00:07]} 36. Rh3 {[%emt 0:00:13]} f4 {[%emt 0:00:26]} 37. Rh4 {[%emt 0:00:08]} g5 {[%emt 0:00:20]} 38. Rh6 {[%emt 0:00:11]} e3 {[%emt 0:00:09]} 39. Re6 {[%emt 0:00:17]} Rb1+ {[%emt 0:00:08]} 0-1

[Event "360 One Wealth GP-4 2024"]
[Site "Mumbai"]
[Date "2024.03.16"]
[Round "6.6"]
[White "Arjun Singh"]
[Black "Pasbola Samvid"]
[Result "1-0"]
[ECO "A36"]
[WhiteElo "1602"]
[BlackElo "1538"]
[Annotator "NA RC"]
[PlyCount "120"]
[EventDate "2024.03.10"]
[EventCountry "IND"]
[SourceTitle "playchess.com"]
[Source "ChessBase"]
[SourceQuality "1"]
[TimeControl "5400+30"]

1. e4 {[%emt 0:01:54]} c5 {[%emt 0:03:03]} 2. c4 {[%emt 0:00:05]} e6 {[%emt 0:00:17]} 3. Nc3 {[%emt 0:00:10]} Nc6 {[%emt 0:00:06]} 4. g3 {[%emt 0:00:06]} Nge7 {[%emt 0:00:38]} 5. Bg2 {[%emt 0:00:06]} a6 {[%emt 0:02:08]} 6. Nge2 {[%emt 0:00:19]} g6 {[%emt 0:00:43]} 7. d3 {[%emt 0:00:06]} Bg7 {[%emt 0:00:34]} 8. Be3 {[%emt 0:00:09]} Nd4 {[%emt 0:01:27]} 9. Rb1 {[%emt 0:00:26]} O-O {[%emt 0:01:38]} 10. O-O {[%emt 0:00:16]} d6 {[%emt 0:04:09]} 11. f4 {[%emt 0:00:10]} f5 {[%emt 0:01:33]} 12. a3 {[%emt 0:01:57]} Rb8 {[%emt 0:06:12]} 13. b4 {[%emt 0:00:12]} Qc7 {[%emt 0:07:53]} 14. Kh1 {[%emt 0:21:34]} Bd7 {[%emt 0:01:32]} 15. Rc1 {[%emt 0:01:17]} b6 {[%emt 0:08:54]} 16. Bxd4 {[%emt 0:02:34]} cxd4 {[%emt 0:01:30]} 17. Nb1 {[%emt 0:00:40]} a5 {[%emt 0:05:25]} 18. b5 {[%emt 0:00:46]} Rfe8 {[%emt 0:09:09]} 19. Nd2 {[%emt 0:00:53]} e5 {[%emt 0:03:10]} 20. Nb3 {[%emt 0:00:13]} Kh8 {[%emt 0:07:02]} 21. a4 {[%emt 0:00:22]} Be6 {[%emt 0:01:52]} 22. fxe5 {[%emt 0:01:44]} dxe5 {[%emt 0:00:15]} 23. c5 {[%emt 0:00:19]} Bxb3 {[%emt 0:00:26]} 24. Qxb3 {[%emt 0:00:18]} bxc5 {[%emt 0:01:15]} 25. Rc2 {[%emt 0:01:27]} Qd6 {[%emt 0:04:46]} 26. Rfc1 {[%emt 0:00:28]} Rbc8 {[%emt 0:00:07]} 27. Qa3 {[%emt 0:03:32]} Bh6 {[%emt 0:01:27]} 28. Rb1 {[%emt 0:00:21]} Qb6 {[%emt 0:01:00]} 29. Nc1 {[%emt 0:00:48]} Rc7 {[%emt 0:01:55]} 30. Nb3 {[%emt 0:00:36]} Rec8 {[%emt 0:00:35]} 31. Rf1 {[%emt 0:01:06]} Be3 {[%emt 0:06:32]} 32. Rc4 {[%emt 0:01:28]} Kg7 {[%emt 0:01:33]} 33. Qa1 {[%emt 0:00:13]} Kh8 {[%emt 0:00:55]} 34. Qe1 {[%emt 0:00:32]} Ra7 {[%emt 0:00:31]} 35. exf5 {[%emt 0:00:51]} gxf5 {[%emt 0:02:28]} 36. h3 {[%emt 0:01:45]} Kg7 {[%emt 0:08:12]} 37. Na1 {[%emt 0:01:20]} Qe6 {[%emt 0:01:42]} 38. Nb3 {[%emt 0:02:11]} Qb6 {[%emt 0:01:15]} 39. Qe2 {[%emt 0:00:09]} Qd6 {[%emt 0:00:38]} 40. Qc2 {[%emt 0:01:08]} Kg6 {[%emt 0:03:14]} 41. g4 {[%emt 0:02:02]} fxg4 {[%emt 0:02:31]} 42. Be4+ {[%emt 0:02:15]} Kg7 {[%emt 0:00:17]} 43. Qg2 {[%emt 0:00:09]} Rg8 {[%emt 0:00:51]} 44. Qxg4+ {[%emt 0:00:38]} Kh8 {[%emt 0:00:10]} 45. Qh5 {[%emt 0:00:18]} Ng6 {[%emt 0:00:42]} 46. Rxc5 {[%emt 0:00:15]} Rag7 {[%emt 0:00:42]} 47. Bxg6 {[%emt 0:03:58]} Qxg6 {[%emt 0:00:31]} 48. Qxg6 {[%emt 0:00:06]} Rxg6 {[%emt 0:00:02]} 49. Rxe5 {[%emt 0:00:12]} Rg3 {[%emt 0:00:59]} 50. Rh5 {[%emt 0:00:32]} Bf2 {[%emt 0:00:33]} 51. Rxf2 {[%emt 0:00:24]} Rxd3 {[%emt 0:00:06]} 52. Nxa5 {[%emt 0:00:41]} Ra3 {[%emt 0:00:38]} 53. b6 {[%emt 0:00:08]} Rxa4 {[%emt 0:00:27]} 54. b7 {[%emt 0:00:01]} Rb4 {[%emt 0:00:45]} 55. Rc5 {[%emt 0:00:23]} d3 {[%emt 0:00:29]} 56. Rc8 {[%emt 0:00:12]} Rb1+ {[%emt 0:00:28]} 57. Kh2 {[%emt 0:00:10]} Rb5 {[%emt 0:00:11]} 58. h4 {[%emt 0:00:08]} Rb4 {[%emt 0:00:48]} 59. Kh3 {[%emt 0:00:12]} d2 {[%emt 0:00:34]} 60. Rxd2 {[%emt 0:00:05]} Rb1 {[%emt 0:00:32]} 1-0

[Event "360 One Wealth GP-4 2024"]
[Site "Mumbai"]
[Date "2024.03.16"]
[Round "6.7"]
[White "Vivek Ashok Jadhav"]
[Black "Prranamya S Panagaonkar"]
[Result "1-0"]
[ECO "A48"]
[WhiteElo "1559"]
[BlackElo "1471"]
[Annotator "NA RC"]
[PlyCount "75"]
[EventDate "2024.03.10"]
[EventCountry "IND"]
[SourceTitle "playchess.com"]
[Source "ChessBase"]
[SourceQuality "1"]
[TimeControl "5400+30"]

1. d4 {[%emt 0:00:26]} Nf6 {[%emt 0:00:15]} 2. Bf4 {[%emt 0:00:29]} g6 {[%emt 0:00:18]} 3. Nf3 {[%emt 0:00:58]} Bg7 {[%emt 0:00:32]} 4. Nbd2 {[%emt 0:01:21]} d6 {[%emt 0:01:23]} 5. e4 {[%emt 0:00:52]} O-O {[%emt 0:02:27]} 6. h3 {[%emt 0:02:58]} Nc6 {[%emt 0:04:35]} 7. c3 {[%emt 0:00:51]} Nh5 {[%emt 0:07:05]} 8. Bh2 {[%emt 0:02:06]} e5 {[%emt 0:01:18]} 9. d5 {[%emt 0:03:26]} Ne7 {[%emt 0:00:23]} 10. Bd3 {[%emt 0:01:50]} Nf4 {[%emt 0:14:58]} 11. Bxf4 {[%emt 0:02:06]} exf4 {[%emt 0:00:02]} 12. O-O {[%emt 0:01:16]} f5 {[%emt 0:03:27]} 13. Re1 {[%emt 0:04:19]} fxe4 {[%emt 0:10:09]} 14. Nxe4 {[%emt 0:04:11]} Nf5 {[%emt 0:03:59]} 15. Neg5 {[%emt 0:03:45]} Re8 {[%emt 0:03:13]} 16. Ne6 {[%emt 0:04:26]} Bxe6 {[%emt 0:00:55]} 17. dxe6 {[%emt 0:03:23]} Qf6 {[%emt 0:05:18]} 18. Qb3 {[%emt 0:02:33]} Rab8 {[%emt 0:02:52]} 19. Rad1 {[%emt 0:04:38]} Re7 {[%emt 0:07:22]} 20. Bb5 {[%emt 0:11:48]} h6 {[%emt 0:16:10]} 21. Bd7 {[%emt 0:04:09]} g5 {[%emt 0:01:56]} 22. Rd5 {[%emt 0:03:48]} Qf8 {[%emt 0:03:19]} 23. Qc2 {[%emt 0:01:25]} Be5 {[%emt 0:03:35]} 24. Nxe5 {[%emt 0:03:57]} dxe5 {[%emt 0:00:01]} 25. Rdxe5 {[%emt 0:01:47]} Nh4 {[%emt 0:00:58]} 26. f3 {[%emt 0:01:35]} Qf6 {[%emt 0:02:26]} 27. Qe4 {[%emt 0:01:34]} Ng6 {[%emt 0:01:53]} 28. Rf5 {[%emt 0:01:54]} Qh8 {[%emt 0:01:29]} 29. Qc4 {[%emt 0:07:15]} Qg7 {[%emt 0:01:57]} 30. Rf7 {[%emt 0:00:40]} Rxf7 {[%emt 0:00:35]} 31. exf7+ {[%emt 0:00:07]} Kh7 {[%emt 0:00:36]} 32. Re8 {[%emt 0:00:19]} Ne5 {[%emt 0:00:33]} 33. Bf5+ {[%emt 0:01:05]} Ng6 {[%emt 0:00:15]} 34. Rxb8 {[%emt 0:00:13]} Qe5 {[%emt 0:00:41]} 35. Bxg6+ {[%emt 0:01:26]} Kxg6 {[%emt 0:00:02]} 36. f8=Q {[%emt 0:00:21]} Qe1+ {[%emt 0:00:15]} 37. Qf1 {[%emt 0:00:07]} Qe3+ {[%emt 0:00:39]} 38. Kh1 {[%emt 0:00:58]} 1-0

[Event "360 One Wealth GP-4 2024"]
[Site "Mumbai"]
[Date "2024.03.16"]
[Round "6.8"]
[White "Boricha Yohan"]
[Black "Milind Parle"]
[Result "1-0"]
[ECO "C54"]
[WhiteElo "1840"]
[BlackElo "1642"]
[Annotator "NA RC"]
[PlyCount "71"]
[EventDate "2024.03.10"]
[EventCountry "IND"]
[SourceTitle "playchess.com"]
[Source "ChessBase"]
[SourceQuality "1"]
[TimeControl "5400+30"]

1. e4 {[%emt 0:00:05]} e5 {[%emt 0:00:04]} 2. Nf3 {[%emt 0:00:06]} Nc6 {[%emt 0:00:05]} 3. Bc4 {[%emt 0:00:05]} Bc5 {[%emt 0:00:03]} 4. c3 {[%emt 0:00:06]} Bb6 {[%emt 0:00:04]} 5. O-O {[%emt 0:02:11]} d6 {[%emt 0:00:16]} 6. d3 {[%emt 0:01:37]} Nf6 {[%emt 0:00:09]} 7. a4 {[%emt 0:01:54]} O-O {[%emt 0:01:51] 7...a5 gains popularity. C54: Giuoco Piano: 4 c3 Nf6, main lines with 5 d4 and 5 d3.} 8. Re1 {[%emt 0:02:13]} a6 {[%emt 0:00:48]} 9. Bg5 {[%emt 0:07:52]} h6 {[%emt 0:00:07]} 10. Be3 {[%emt 0:02:04]} Bxe3 {[%emt 0:02:54]} 11. Rxe3 $146 {[%emt 0:00:17]} ({Predecessor:} 11. fxe3 Qe7 12. Nbd2 Bd7 13. d4 Rad8 14. b4 Rfe8 15. d5 Nb8 16. b5 axb5 17. Bxb5 Bxb5 18. axb5 {0-1 Horn,C (1113)-Marape,N (1588) Africa-ch U18 Girls 2019 (9.5)}) 11... Ne7 {[%emt 0:15:26]} 12. h3 {[%emt 0:16:50]} Ng6 {[%emt 0:19:26]} 13. Bb3 {[%emt 0:02:49]} Qe7 {[%emt 0:00:00]} 14. Nbd2 {[%emt 0:00:00]} Be6 {[%emt 0:00:00]} 15. Bc2 {[%emt 0:05:17]} Rad8 {[%emt 0:00:00]} 16. d4 {[%emt 0:00:56]} c6 {[%emt 0:00:00]} 17. b4 {[%emt 0:02:20]} Qc7 {[%emt 0:00:00]} 18. c4 {[%emt 0:05:13]} Nf4 {[%emt 0:02:03]} 19. Qb1 {[%emt 0:04:43]} N6h5 {[%emt 0:05:24]} 20. Qb2 {[%emt 0:07:10]} f6 {[%emt 0:01:32]} 21. Nh4 {[%emt 0:01:32]} g5 {[%emt 0:05:46]} 22. Nf5 {[%emt 0:00:08]} Kh7 {[%emt 0:01:15]} 23. Kh2 {[%emt 0:07:40]} Bxf5 {[%emt 0:03:08]} 24. exf5 {[%emt 0:00:06]} d5 $16 {[%emt 0:19:21]} (24... exd4 $1 $11 25. Qxd4 c5) 25. dxe5 {[%emt 0:02:24]} d4 {[%emt 0:00:18]} 26. Ree1 {[%emt 0:02:55]} d3 {[%emt 0:02:43]} 27. Bd1 {[%emt 0:00:37]} fxe5 {[%emt 0:11:04]} 28. g3 {[%emt 0:02:36]} Ne2 29. Bxe2 {[%emt 0:01:27]} dxe2 {[%emt 0:03:06]} 30. Rxe2 {[%emt 0:02:25]} Ng7 {[%emt 0:02:44]} 31. g4 {[%emt 0:00:30]} Rd4 {[%emt 0:00:30]} 32. Rae1 {[%emt 0:00:30]} Rfd8 {[%emt 0:00:30]} 33. Kg2 {[%emt 0:00:30]} c5 {[%emt 0:00:30]} 34. Nf3 {[%emt 0:00:30]} Rxc4 {[%emt 0:02:40]} 35. Rxe5 {[%emt 0:05:41]} cxb4 {[%emt 0:02:03]} 36. Re7 {[%emt 0:00:16]} 1-0

[Event "360 One Wealth GP-4 2024"]
[Site "Mumbai"]
[Date "2024.03.16"]
[Round "6.9"]
[White "Kapadi Yash"]
[Black "Sunil, Vaidya"]
[Result "1-0"]
[ECO "D78"]
[WhiteElo "1779"]
[BlackElo "1640"]
[Annotator "NA RC"]
[PlyCount "83"]
[EventDate "2024.03.10"]
[EventCountry "IND"]
[SourceTitle "playchess.com"]
[Source "ChessBase"]
[SourceQuality "1"]
[TimeControl "5400+30"]

1. d4 {[%emt 0:01:42]} d5 {[%emt 0:00:11]} 2. Nf3 {[%emt 0:00:29]} Nf6 {[%emt 0:00:14]} 3. g3 {[%emt 0:00:19]} g6 {[%emt 0:01:31]} 4. Bg2 {[%emt 0:00:18]} Bg7 {[%emt 0:00:11]} 5. O-O {[%emt 0:00:06]} O-O {[%emt 0:00:06]} 6. c4 {[%emt 0:00:04]} c6 {[%emt 0:01:36]} 7. Nc3 {[%emt 0:00:06]} Ne4 {[%emt 0:03:00]} 8. Qb3 {[%emt 0:04:14]} dxc4 {[%emt 0:02:33]} 9. Qxc4 {[%emt 0:00:42]} Nxc3 {[%emt 0:03:12]} 10. bxc3 {[%emt 0:00:13]} Nd7 {[%emt 0:00:35]} 11. e4 {[%emt 0:07:51]} Qc7 {[%emt 0:03:59]} 12. Ba3 {[%emt 0:03:16]} b5 {[%emt 0:01:42]} 13. Qe2 {[%emt 0:05:07]} Nb6 {[%emt 0:00:58]} 14. Rfd1 {[%emt 0:00:51]} Bg4 {[%emt 0:04:55]} 15. h3 {[%emt 0:01:42]} Be6 {[%emt 0:07:56]} 16. Rac1 {[%emt 0:02:47]} Bh6 {[%emt 0:05:16]} 17. Rb1 {[%emt 0:02:00]} Bc4 {[%emt 0:03:26]} 18. Qc2 {[%emt 0:00:15]} f6 {[%emt 0:00:38]} 19. Nd2 {[%emt 0:04:42]} Bf7 {[%emt 0:00:35]} 20. Nb3 {[%emt 0:07:08]} Nc4 {[%emt 0:01:17]} 21. Bc1 {[%emt 0:01:20]} Bg7 {[%emt 0:00:33]} 22. d5 {[%emt 0:03:05]} c5 {[%emt 0:05:12]} 23. Bf1 {[%emt 0:12:39]} f5 {[%emt 0:05:51]} 24. Bxc4 {[%emt 0:05:12]} bxc4 {[%emt 0:00:39]} 25. Nd2 {[%emt 0:08:49]} f4 {[%emt 0:09:11]} 26. g4 {[%emt 0:00:00]} h5 {[%emt 0:01:24]} 27. Nxc4 {[%emt 0:00:00]} hxg4 {[%emt 0:00:28]} 28. hxg4 {[%emt 0:00:00]} f3 {[%emt 0:02:37]} 29. e5 {[%emt 0:03:52]} Bxe5 {[%emt 0:04:03]} 30. Qe4 {[%emt 0:01:20]} Bh2+ {[%emt 0:01:25]} 31. Kh1 {[%emt 0:06:18]} Kg7 {[%emt 0:11:53]} 32. d6 {[%emt 0:03:28]} Bxd6 {[%emt 0:06:42]} 33. Nxd6 {[%emt 0:02:11]} exd6 {[%emt 0:03:48]} 34. Rb7 {[%emt 0:02:01]} Qd8 {[%emt 0:02:16]} 35. Qxf3 {[%emt 0:02:46]} Qe8 {[%emt 0:02:03]} 36. c4 {[%emt 0:03:16]} Rh8+ {[%emt 0:02:16]} 37. Kg1 {[%emt 0:00:16]} Kg8 {[%emt 0:00:28]} 38. Rxf7 {[%emt 0:01:58]} Qxf7 {[%emt 0:00:35]} 39. Qxa8+ {[%emt 0:00:03]} Kh7 {[%emt 0:00:12]} 40. Qh1+ {[%emt 0:00:10]} Kg8 {[%emt 0:00:05]} 41. Qd5 {[%emt 0:00:07]} Rh4 {[%emt 0:00:37]} 42. f3 {[%emt 0:00:20]} 1-0